bitfinex/quotes_SOLUSD_20251218
["timestamp","ask_amount","ask_price","bid_price","bid_amount"]
[1766088155914,6.78572061,118.78,118.72,7.44572061]
[1766088156125,6.78572061,118.77,118.73,0.99999999]
[1766088156330,10.43767296,118.85,118.76,7.44572061]
[1766088156640,10.43767296,118.85,118.77,0.99999999]
[1766088156820,6.78572061,118.84,118.79,0.99999999]
[1766088157021,9.22,118.85,118.79,0.99999999]
[1766088157358,9.22,118.9,118.82,0.99999999]
[1766088157531,6.78572061,118.87,118.82,0.99999999]
[1766088157951,6.78572061,118.86,118.8,0.99999999]
[1766088158112,6.78572061,118.86,118.81,0.99999999]
[1766088158437,8.80994492,118.9,118.82,8.4457206]
[1766088158624,6.78572061,118.89,118.83,7.7857206]
[1766088158829,24.41694293,118.89,118.83,7.7857206]
[1766088159037,17.63122232,118.89,118.83,0.99999999]
[1766088159219,6.78572061,118.9,118.85,0.99999999]
[1766088159531,6.78572061,118.9,118.85,7.7857206]
[1766088159532,10.43767296,118.9,118.85,7.7857206]
[1766088159706,8.40767502,118.94,118.87,7.7857206]
[1766088159910,6.78572061,118.93,118.88,6.78572061]
[1766088160110,6.78572061,118.93,118.88,0.99999999]
[1766088160507,17.75978197,118.95,118.87,0.66]
[1766088160840,8.4083074,118.93,118.87,1.65999999]
[1766088161007,18.84598036,118.93,118.87,1.65999999]
[1766088161331,6.78572061,118.92,118.87,0.66]
[1766088161530,6.78572061,118.9,118.86,0.99999999]
[1766088161838,6.78572061,118.9,118.84,8.4457206]
[1766088161839,6.78572061,118.89,118.84,8.4457206]
[1766088162024,6.78572061,118.88,118.83,11.43767295]
[1766088162220,8.80994492,118.89,118.81,0.99999999]
[1766088162409,8.80994492,118.89,118.79,9.07800124]
[1766088162410,6.78572061,118.86,118.82,0.99999999]
[1766088162611,8.80994492,118.89,118.83,0.99999999]
[1766088162923,10.43767296,118.9,118.85,0.99999999]
[1766088163126,6.78572061,118.88,118.84,0.99999999]
[1766088163336,6.78572061,118.87,118.83,0.99999999]
[1766088163631,8.80994492,118.88,118.82,1.69999999]
[1766088163834,6.78572061,118.87,118.83,0.99999999]
[1766088164131,19.65767296,118.9,118.84,1.69999999]
[1766088164331,6.78572061,118.88,118.84,1.69999999]
[1766088164539,17.22339357,118.9,118.85,0.99999999]
[1766088164724,17.22339357,118.9,118.85,7.7857206]
[1766088164924,17.22339357,118.9,118.85,16.19966347]
[1766088165120,17.22339357,118.9,118.85,7.7857206]
[1766088165337,10.43767296,118.9,118.85,8.4857206]
[1766088165542,6.78572061,118.93,118.88,0.99999999]
[1766088165740,6.91840945,118.95,118.89,0.7]
[1766088165945,6.91840945,118.95,118.9,0.7]
[1766088166244,0.13268884,118.95,118.9,0.7]
[1766088166419,15.32539719,118.95,118.9,0.7]
[1766088166617,8.53967658,118.95,118.89,0.99999999]
[1766088166822,6.78572061,118.92,118.87,1.69999999]
[1766088167020,6.78572061,118.92,118.84,1.69999999]
[1766088167021,6.78572061,118.89,118.84,1.69999999]
[1766088167238,10.43767296,118.91,118.85,0.7]
[1766088167538,10.43767296,118.91,118.87,0.7]
[1766088167726,10.43767296,118.91,118.87,1.69999999]
[1766088167727,17.22339357,118.91,118.87,1.69999999]
[1766088167927,10.43767296,118.91,118.87,1.69999999]
[1766088168133,10.43767296,118.91,118.87,0.99999999]
[1766088168315,9.35268884,118.95,118.89,0.7]
[1766088168517,16.13840945,118.95,118.9,0.7]
[1766088168722,24.54539998,118.95,118.9,0.7]
[1766088168933,24.54539998,118.95,118.89,7.7857206]
[1766088168934,6.78572061,118.93,118.88,7.48572061]
[1766088169140,8.80994492,118.94,118.88,0.7]
[1766088169327,8.80994492,118.94,118.88,8.4857206]
[1766088169534,6.78572061,118.92,118.88,1.69999999]
[1766088169849,8.80994492,118.94,118.88,0.7]
[1766088170050,6.78572061,118.9,118.86,0.99999999]
[1766088170214,19.24761788,118.91,118.86,0.99999999]
[1766088170414,9.22,118.91,118.87,0.7]
[1766088170730,9.22,118.93,118.88,0.7]
[1766088171126,16.00572061,118.93,118.89,0.99999999]
[1766088171347,24.41404668,118.93,118.89,0.99999999]
[1766088171652,6.78572061,118.92,118.88,0.7]
[1766088171854,24.41404668,118.93,118.89,1.69999999]
[1766088172028,24.41404668,118.93,118.89,0.7]
[1766088172363,16.00572061,118.93,118.89,1.69999999]
[1766088172548,6.78572061,118.92,118.88,0.99999999]
[1766088172844,15.19528832,118.92,118.87,0.7]
[1766088173047,6.78572061,118.91,118.86,0.99999999]
[1766088173348,6.78572061,118.91,118.87,0.7]
[1766088173516,6.78572061,118.89,118.86,0.99999999]
[1766088173720,8.80994492,118.92,118.86,0.99999999]
[1766088174148,6.78572061,118.9,118.86,0.99999999]
[1766088174318,0.13268884,118.95,118.9,0.7]
[1766088174319,163.53268884,118.95,118.9,0.7]
[1766088174526,15.32536858,118.95,118.9,1.69999999]
[1766088174732,6.91840945,118.95,118.9,1.69999999]
[1766088175032,6.78572061,118.94,118.9,1.69999999]
[1766088175236,15.19342053,118.94,118.9,1.69999999]
[1766088175451,15.19342053,118.94,118.88,1.69999999]
[1766088175452,6.78572061,118.92,118.88,1.69999999]
[1766088175654,6.78572061,118.92,118.88,0.7]
[1766088175864,6.78572061,118.91,118.87,0.99999999]
[1766088176064,6.78572061,118.92,118.86,8.4857206]
[1766088176273,6.78572061,118.91,118.86,1.69999999]
[1766088176451,6.78572061,118.91,118.84,0.99999999]
[1766088176452,10.43767296,118.91,118.84,0.99999999]
[1766088176757,6.78572061,118.87,118.84,1.69999999]
[1766088176935,9.22,118.88,118.83,1.69999999]
[1766088177332,6.78572061,118.9,118.84,1.69999999]
[1766088177536,6.78572061,118.9,118.85,1.69999999]
[1766088177758,28.06759803,118.91,118.85,1.69999999]
[1766088177962,6.78572061,118.9,118.85,1.69999999]
[1766088178455,6.78572061,118.89,118.85,0.7]
[1766088178655,6.78572061,118.88,118.85,0.7]
[1766088178836,6.78572061,118.89,118.85,1.69999999]
[1766088179037,8.72,118.91,118.86,1.69999999]
[1766088179234,15.50572061,118.91,118.86,0.99999999]
[1766088179462,6.78572061,118.92,118.87,0.99999999]
[1766088179641,6.78572061,118.92,118.87,1.69999999]
[1766088179838,6.78572061,118.9,118.86,0.99999999]
[1766088180061,6.78572061,118.88,118.83,1.69999999]
[1766088180358,6.78572061,118.87,118.83,1.69999999]
[1766088180564,6.78572061,118.87,118.83,0.7]
[1766088180732,6.78572061,118.89,118.85,0.7]
[1766088181059,8.41076026,118.9,118.85,0.7]
[1766088181262,6.78572061,118.9,118.87,0.71]
[1766088181732,18.84768488,118.91,118.87,0.71]
[1766088181934,6.78572061,118.89,118.87,0.71]
[1766088182136,6.78572061,118.88,118.84,0.71]
[1766088182344,0.71,118.9,118.84,0.71]
[1766088182345,9.22,118.87,118.84,0.71]
[1766088182565,6.78572061,118.86,118.84,0.71]
[1766088182874,6.78572061,118.85,118.84,0.71]
[1766088183040,163.4,118.91,118.8,9.80994491]
[1766088183237,8.40760047,118.94,118.87,7.7857206]
[1766088183458,6.78572061,118.94,118.88,12.96772395]
[1766088183761,17.75987338,118.95,118.89,0.99999999]
[1766088184070,6.78572061,118.94,118.89,0.99999999]
[1766088184358,6.78572061,118.93,118.9,6.22134757]
[1766088184581,9.35268884,118.95,118.91,6.22134757]
[1766088184752,6.78572061,118.93,118.88,0.99999999]
[1766088184944,6.78572061,118.93,118.89,6.22141359]
[1766088185142,6.78572061,118.92,118.9,6.22141359]
[1766088185439,6.78572061,118.91,118.86,0.99999999]
[1766088185657,6.78572061,118.91,118.84,0.99999999]
[1766088185658,6.78572061,118.89,118.84,0.99999999]
[1766088185850,6.78572061,118.88,118.84,0.99999999]
[1766088186365,6.78572061,118.9,118.85,7.7857206]
[1766088186564,6.78572061,118.9,118.85,0.99999999]
[1766088186871,6.78572061,118.91,118.85,7.7857206]
[1766088187171,0.84268884,118.95,118.89,0.99999999]
[1766088187350,6.91840945,118.95,118.9,0.99999999]
[1766088187663,6.78572061,118.94,118.89,0.99999999]
[1766088188040,6.78572061,118.93,118.89,0.99999999]
[1766088188238,6.78572061,118.92,118.88,0.99999999]
[1766088188637,0.71,118.94,118.88,6.78572061]
[1766088188638,6.78572061,118.93,118.88,6.78572061]
[1766088188857,6.78572061,118.93,118.88,0.99999999]
[1766088189067,0.71,118.94,118.88,0.99999999]
[1766088189261,6.78572061,118.93,118.88,0.99999999]
[1766088189750,6.78572061,118.93,118.88,7.7857206]
[1766088190065,16.00572061,118.93,118.89,0.99999999]
[1766088190362,9.22,118.93,118.87,7.7857206]
[1766088190563,9.22,118.93,118.88,0.99999999]
[1766088190564,6.78572061,118.92,118.88,0.99999999]
[1766088190960,16.00572061,118.92,118.88,0.99999999]
[1766088191151,0.13268884,118.95,118.89,7.7857206]
[1766088191354,6.91840945,118.95,118.91,0.99999999]
[1766088191575,8.5396716,118.95,118.9,0.99999999]
[1766088191868,15.32539221,118.95,118.9,0.99999999]
[1766088192043,8.5396716,118.95,118.9,0.99999999]
[1766088192242,6.78572061,118.93,118.89,0.99999999]
[1766088192457,6.78572061,118.92,118.88,0.99999999]
[1766088192663,0.67,118.91,118.87,0.99999999]
[1766088192873,6.78572061,118.9,118.87,0.99999999]
[1766088193677,0.67,118.91,118.87,0.99999999]
[1766088193973,6.78572061,118.89,118.85,0.99999999]
[1766088194192,9.07992647,118.91,118.84,15.20013215]
[1766088194193,6.78572061,118.88,118.84,0.99999999]
[1766088194361,7.45572061,118.88,118.85,0.99999999]
[1766088194680,16.67572061,118.9,118.85,0.99999999]
[1766088194891,9.89,118.9,118.85,0.99999999]
[1766088195054,6.78572061,118.88,118.84,0.99999999]
[1766088195459,8.41119546,118.89,118.84,7.7857206]
[1766088195670,15.19691607,118.89,118.84,7.7857206]
[1766088195848,15.19691607,118.89,118.83,8.41502973]
[1766088195849,18.30119546,118.89,118.83,7.7857206]
[1766088196053,18.30119546,118.89,118.83,0.99999999]
[1766088196273,6.78572061,118.88,118.83,9.41530381]
[1766088196456,18.30119546,118.89,118.84,0.99999999]
[1766088196661,0.67,118.92,118.84,7.7857206]
[1766088196878,6.78572061,118.9,118.86,0.99999999]
[1766088197051,15.19702749,118.89,118.85,0.99999999]
[1766088197253,6.78572061,118.89,118.85,0.99999999]
[1766088197489,10.95662271,118.89,118.85,0.99999999]
[1766088197661,10.95662271,118.88,118.84,11.43767295]
[1766088197982,29.25706849,118.9,118.86,0.99999999]
[1766088198482,18.30044578,118.9,118.85,0.99999999]
[1766088198645,0.67,118.89,118.86,0.99999999]
[1766088198978,11.62662271,118.89,118.84,22.39429566]
[1766088199183,10.95662271,118.85,118.81,0.99999999]
[1766088199562,10.95662271,118.84,118.81,0.99999999]
[1766088199747,10.95662271,118.84,118.79,0.99999999]
[1766088199949,10.95662271,118.84,118.77,9.4]
[1766088199950,10.95662271,118.82,118.78,0.99999999]
[1766088200152,0.67,118.81,118.77,0.2]
[1766088200468,10.95662271,118.82,118.78,0.99999999]
[1766088200668,11.62662271,118.82,118.78,0.99999999]
[1766088200963,0.67,118.82,118.78,0.99999999]
[1766088201287,9.22,118.83,118.8,0.99999999]
[1766088201466,10.95662271,118.81,118.77,1.19999999]
[1766088201661,10.95662271,118.81,118.77,0.2]
[1766088201662,10.95662271,118.8,118.77,0.2]
[1766088201876,11.62662271,118.81,118.77,0.2]
[1766088202173,0.67,118.84,118.8,0.99999999]
[1766088202487,11.62662271,118.84,118.8,0.99999999]
[1766088202778,10.95662271,118.82,118.79,0.99999999]
[1766088202984,10.95662271,118.8,118.77,0.2]
[1766088203161,19.37413112,118.8,118.77,0.2]
[1766088203355,11.62662271,118.79,118.77,0.2]
[1766088203560,0.67,118.79,118.77,0.2]
[1766088203758,11.62662271,118.78,118.74,0.99999999]
[1766088204087,20.84662271,118.8,118.76,0.99999999]
[1766088204987,10.95662271,118.79,118.74,0.99999999]
[1766088205285,9.22,118.8,118.77,0.99999999]
[1766088205465,20.17662271,118.8,118.75,22.39429566]
[1766088205667,9.22,118.8,118.75,22.39429566]
[1766088205884,10.95662271,118.79,118.74,0.99999999]
[1766088206180,10.95662271,118.78,118.74,0.99999999]
[1766088206382,8.41467519,118.84,118.78,0.99999999]
[1766088206556,9.22,118.83,118.78,11.9566227]
[1766088206755,9.22,118.83,118.74,38.67614026]
[1766088206756,20.17662271,118.84,118.79,11.9566227]
[1766088206972,20.17662271,118.84,118.81,0.99999999]
[1766088207358,10.95662271,118.83,118.79,0.99999999]
[1766088207558,10.95662271,118.84,118.79,11.9566227]
[1766088207864,10.95662271,118.84,118.8,0.99999999]
[1766088208083,17.63427672,118.85,118.79,0.99999999]
[1766088208084,10.95662271,118.82,118.79,0.99999999]
[1766088208279,10.95662271,118.81,118.77,0.99999999]
[1766088208781,10.95662271,118.8,118.76,0.99999999]
[1766088208989,10.95662271,118.79,118.76,0.99999999]
[1766088209179,10.95662271,118.78,118.75,0.99999999]
[1766088209486,8.41848807,118.79,118.75,0.99999999]
[1766088209487,10.95662271,118.77,118.75,0.99999999]
[1766088209695,10.95662271,118.78,118.75,0.99999999]
[1766088209919,163.4,118.83,118.76,0.99999999]
[1766088210080,10.95662271,118.81,118.77,0.99999999]
[1766088210277,11.62662271,118.82,118.77,0.99999999]
[1766088210482,9.22,118.82,118.81,0.99999999]
[1766088210798,31.47012644,118.87,118.81,0.99999999]
[1766088210971,31.47012644,118.87,118.83,0.99999999]
[1766088210972,20.17662271,118.86,118.83,0.99999999]
[1766088211176,20.17662271,118.86,118.78,10.43767296]
[1766088211177,10.95662271,118.84,118.8,0.99999999]
[1766088211480,20.17662271,118.86,118.83,0.99999999]
[1766088211682,9.22,118.86,118.83,0.99999999]
[1766088211882,10.95662271,118.86,118.83,0.99999999]
[1766088212066,18.30303002,118.87,118.83,0.99999999]
[1766088212258,9.89,118.87,118.81,20.37321418]
[1766088212458,20.84662271,118.87,118.83,0.99999999]
[1766088212691,20.84662271,118.87,118.82,0.99999999]
[1766088212988,20.17662271,118.88,118.84,0.99999999]
[1766088213175,20.17662271,118.88,118.85,0.99999999]
[1766088213586,10.95662271,118.87,118.83,0.99999999]
[1766088213789,10.95662271,118.86,118.83,0.99999999]
[1766088214568,10.43767296,118.91,118.86,0.99999999]
[1766088214569,0.67,118.91,118.86,0.99999999]
[1766088214788,20.03642937,118.91,118.86,0.99999999]
[1766088214982,10.95662271,118.9,118.86,0.99999999]
[1766088215189,10.95662271,118.89,118.86,0.99999999]
[1766088215389,10.95662271,118.87,118.84,0.99999999]
[1766088215691,10.95662271,118.87,118.83,0.99999999]
[1766088215692,10.95662271,118.86,118.83,0.99999999]
[1766088216070,10.95662271,118.86,118.81,11.9566227]
[1766088216283,10.95662271,118.86,118.83,0.99999999]
[1766088216772,11.62662271,118.9,118.87,0.99999999]
[1766088217184,10.95662271,118.89,118.86,0.99999999]
[1766088217487,8.41325929,118.86,118.83,0.99999999]
[1766088217696,10.95662271,118.84,118.82,0.99999999]
[1766088217987,11.62662271,118.83,118.79,0.99999999]
[1766088218191,10.95662271,118.81,118.79,0.99999999]
[1766088218368,0.67,118.83,118.8,0.99999999]
[1766088218568,0.67,118.83,118.79,0.99999999]
[1766088218569,10.95662271,118.82,118.79,0.99999999]
[1766088218767,9.22,118.84,118.79,0.99999999]
[1766088218966,10.95662271,118.81,118.79,0.99999999]
[1766088219168,11.62662271,118.81,118.79,0.99999999]
[1766088219390,11.62662271,118.81,118.77,0.99999999]
[1766088219593,21.0371064,118.84,118.79,0.99999999]
[1766088219770,0.67,118.84,118.79,0.99999999]
[1766088219991,10.95662271,118.84,118.81,0.99999999]
[1766088220496,10.95662271,118.82,118.8,0.99999999]
[1766088221167,0.67,118.84,118.8,0.99999999]
[1766088221367,11.62662271,118.84,118.81,0.99999999]
[1766088221583,20.84662271,118.84,118.81,0.99999999]
[1766088221869,20.17662271,118.84,118.82,0.99999999]
[1766088222074,10.95662271,118.85,118.82,0.99999999]
[1766088222282,10.95662271,118.84,118.82,0.99999999]
[1766088222593,10.95662271,118.83,118.82,0.99999999]
[1766088222976,11.62662271,118.85,118.82,0.99999999]
[1766088223599,31.4699422,118.87,118.82,0.99999999]
[1766088223600,8.41273143,118.87,118.82,0.99999999]
[1766088223804,10.95662271,118.9,118.86,0.99999999]
[1766088224095,10.95662271,118.9,118.82,8.41606303]
[1766088224096,10.95662271,118.88,118.84,0.99999999]
[1766088224295,8.40972163,118.91,118.83,0.99999999]
[1766088224296,10.95662271,118.85,118.83,0.99999999]
[1766088224471,9.93,118.87,118.79,0.99999999]
[1766088224472,10.95662271,118.84,118.79,0.99999999]
[1766088224669,11.66662271,118.86,118.81,20.37293097]
[1766088224869,10.95662271,118.86,118.83,0.99999999]
[1766088225279,9.93,118.87,118.83,0.99999999]
[1766088225686,10.95662271,118.86,118.83,0.99999999]
[1766088225993,11.66662271,118.86,118.83,0.99999999]
[1766088226190,10.95662271,118.85,118.82,0.99999999]
[1766088226399,11.66662271,118.85,118.82,0.99999999]
[1766088226600,9.12014094,118.91,118.84,11.9566227]
[1766088226777,10.95662271,118.92,118.88,0.99999999]
[1766088226971,10.95662271,118.89,118.85,0.99999999]
[1766088227300,0.71,118.85,118.78,8.41822974]
[1766088227497,10.95662271,118.82,118.77,8.41935017]
[1766088227800,9.22,118.82,118.77,10.95662271]
[1766088227966,20.17662271,118.82,118.77,10.95662271]
[1766088228170,10.95662271,118.81,118.76,10.95662271]
[1766088228391,20.17662271,118.82,118.77,10.95662271]
[1766088228782,9.22,118.82,118.77,10.95662271]
[1766088228990,9.22,118.82,118.75,29.47332396]
[1766088228991,10.95662271,118.81,118.76,10.95662271]
[1766088229297,8.41376328,118.86,118.8,10.95662271]
[1766088229504,11.66662271,118.85,118.8,10.95662271]
[1766088229794,11.66662271,118.85,118.79,10.95662271]
[1766088230181,11.66662271,118.85,118.8,10.95662271]
[1766088230383,10.95662271,118.87,118.82,10.95662271]
[1766088230779,10.95662271,118.86,118.81,10.95662271]
[1766088230986,10.95662271,118.85,118.8,10.95662271]
[1766088231300,10.95662271,118.92,118.84,10.95662271]
[1766088231598,10.95662271,118.92,118.84,19.63767296]
[1766088231893,19.36636457,118.91,118.85,10.95662271]
[1766088232095,10.95662271,118.9,118.84,9.2]
[1766088232272,10.95662271,118.9,118.81,29.85139192]
[1766088232273,11.66662271,118.88,118.81,31.47911996]
[1766088232476,11.66662271,118.88,118.83,10.95662271]
[1766088233122,11.66662271,118.87,118.82,10.95662271]
[1766088233403,11.66662271,118.87,118.81,19.37314304]
[1766088233594,0.71,118.87,118.81,19.37314304]
[1766088233768,10.95662271,118.86,118.81,19.37314304]
[1766088233967,11.66662271,118.86,118.8,19.37392472]
[1766088234200,10.95662271,118.85,118.8,19.37392472]
[1766088234367,0.71,118.86,118.8,19.3739525]
[1766088234571,11.66662271,118.86,118.8,19.3739525]
[1766088234788,11.66662271,118.86,118.81,19.3732973]
[1766088235002,11.66662271,118.86,118.79,10.43767296]
[1766088235003,11.66662271,118.84,118.78,9.2]
[1766088235221,0.71,118.84,118.79,10.95662271]
[1766088235402,0.71,118.84,118.8,10.95662271]
[1766088235578,39.87950151,118.88,118.79,8.41791003]
[1766088235579,39.87950151,118.88,118.79,10.95662271]
[1766088235778,39.87950151,118.88,118.78,30.24671055]
[1766088235779,30.51621114,118.88,118.83,10.95662271]
[1766088236092,10.95662271,118.86,118.81,8.41643265]
[1766088236275,10.95662271,118.86,118.81,10.95662271]
[1766088236475,0.71,118.9,118.83,10.95662271]
[1766088236686,11.66662271,118.9,118.82,9.2]
[1766088236901,10.95662271,118.91,118.86,10.95662271]
[1766088237099,9.11920597,118.92,118.85,10.95662271]
[1766088237277,10.95662271,118.89,118.84,10.95662271]
[1766088237675,9.11920597,118.92,118.86,10.95662271]
[1766088237990,9.11920597,118.92,118.83,10.43767296]
[1766088237991,10.95662271,118.9,118.85,10.95662271]
[1766088238190,10.95662271,118.89,118.84,10.95662271]
[1766088239199,11.66662271,118.89,118.83,19.37193594]
[1766088239577,11.66662271,118.89,118.84,19.37099378]
[1766088239988,10.95662271,118.88,118.83,19.37166903]
[1766088240307,10.95662271,118.91,118.86,10.95662271]
[1766088240477,10.95662271,118.91,118.85,10.95662271]
[1766088240478,0.71,118.91,118.85,10.95662271]
[1766088240676,11.66662271,118.91,118.85,10.95662271]
[1766088241008,0.71,118.93,118.88,10.95662271]
[1766088241175,164.24268884,118.95,118.87,8.80994492]
[1766088241383,0.13268884,118.95,118.91,10.95662271]
[1766088241596,1e-08,118.95,118.92,9.2]
[1766088241801,1e-08,118.95,118.92,28.56553252]
[1766088242007,1e-08,118.95,118.92,17.60892999]
[1766088242304,1e-08,118.95,118.92,28.5655527]
[1766088242471,1e-08,118.95,118.92,9.2]
[1766088242998,1e-08,118.95,118.92,19.36559608]
[1766088243397,1e-08,118.95,118.9,10.43767296]
[1766088243705,10.95662272,118.95,118.9,28.5665482]
[1766088243890,1e-08,118.95,118.91,19.36629028]
[1766088244088,1e-08,118.95,118.93,10.95662271]
[1766088244489,1e-08,118.95,118.9,18.00994492]
[1766088244490,0.68000001,118.95,118.9,8.41011034]
[1766088244799,1e-08,118.95,118.92,10.95662271]
[1766088245003,1e-08,118.95,118.91,38.63400778]
[1766088245004,1e-08,118.95,118.93,10.95662271]
[1766088245788,1e-08,118.95,118.92,19.36527397]
[1766088246185,1e-08,118.95,118.93,10.95662271]
[1766088246492,10.95662272,118.95,118.91,9.2]
[1766088246696,1e-08,118.95,118.92,8.40894736]
[1766088247003,1e-08,118.95,118.92,19.36557007]
[1766088247207,1e-08,118.95,118.91,9.2]
[1766088247415,1e-08,118.95,118.92,19.36548682]
[1766088247605,1e-08,118.95,118.92,10.95662271]
[1766088247790,1e-08,118.95,118.92,19.36544944]
[1766088249114,1e-08,118.95,118.92,10.95662271]
[1766088249314,1e-08,118.95,118.91,20.15662271]
[1766088249538,11.63662272,118.95,118.91,9.2]
[1766088249696,0.68000001,118.95,118.91,9.2]
[1766088249924,1e-08,118.95,118.91,28.56628508]
[1766088250101,1e-08,118.95,118.91,20.15662271]
[1766088250303,11.63662272,118.95,118.91,9.2]
[1766088250502,11.63662271,118.94,118.91,9.2]
[1766088250794,0.68,118.94,118.91,9.2]
[1766088250991,11.63662271,118.93,118.88,19.36810288]
[1766088251198,11.63662271,118.93,118.88,28.56810288]
[1766088251599,11.63662271,118.93,118.88,9.2]
[1766088251600,10.95662271,118.92,118.88,9.2]
[1766088251894,1e-08,118.95,118.88,9.2]
[1766088251895,10.95662271,118.9,118.88,9.2]
[1766088252101,11.63662271,118.94,118.88,28.56816843]
[1766088252397,11.63662271,118.93,118.88,49.59777812]
[1766088253111,0.69,118.92,118.88,17.61154572]
[1766088253423,0.69000001,118.95,118.88,17.61173472]
[1766088253620,10.95662271,118.92,118.88,17.61173472]
[1766088253787,11.64662271,118.92,118.88,9.2]
[1766088254324,0.69,118.9,118.86,8.41319349]
[1766088254495,11.64662271,118.9,118.86,8.41319349]
[1766088254690,11.64662271,118.9,118.85,17.61371283]
[1766088254950,0.69,118.89,118.85,17.61371283]
[1766088255131,48.67421952,118.94,118.86,8.41317547]
[1766088255132,0.69,118.93,118.86,8.41317547]
[1766088255306,11.64662271,118.91,118.86,8.41317547]
[1766088255503,0.69,118.9,118.85,28.57023896]
[1766088255696,0.69,118.91,118.87,8.4121877]
[1766088256121,27.65521835,118.94,118.89,10.95662271]
[1766088256122,11.64662271,118.94,118.89,10.95662271]
[1766088256418,1e-08,118.95,118.91,10.95662271]
[1766088256594,1e-08,118.95,118.91,9.2]
[1766088256790,1e-08,118.95,118.93,10.95662271]
[1766088256990,1e-08,118.95,118.94,20.15662271]
[1766088257217,1e-08,118.95,118.94,9.2]
[1766088257427,1e-08,118.95,118.94,20.15662271]
[1766088257622,0.1,118.99,118.95,10.95662271]
[1766088257827,0.69,119.02,118.95,19.24761788]
[1766088258003,11.64662271,119.0,118.96,8.40618695]
[1766088258321,0.69,119.0,118.96,28.56280966]
[1766088258498,11.64662271,119.0,118.96,9.2]
[1766088258694,11.64662271,119.0,118.96,1.561224]
[1766088258895,0.69,119.02,118.97,10.95662271]
[1766088259300,0.69,119.02,118.98,10.95662271]
[1766088259599,0.69,119.02,118.98,6.72706838]
[1766088259822,0.69,119.02,118.97,6.72706838]
[1766088260004,6.72706838,119.01,118.96,16.69414805]
[1766088260197,0.69,119.0,118.96,1.561224]
[1766088260515,0.69,118.98,118.96,1.561224]
[1766088260720,0.69,119.0,118.96,6.72706838]
[1766088260893,0.69,119.0,118.95,8.40680981]
[1766088261090,0.69,119.0,118.95,6.72706838]
[1766088261091,6.72706838,119.0,118.95,6.72706838]
[1766088261624,0.69,118.99,118.95,6.72706838]
[1766088261917,0.69,118.99,118.96,6.72706838]
[1766088262120,15.82115034,118.99,118.94,6.72706838]
[1766088262291,0.69,118.97,118.93,6.72706838]
[1766088262497,15.82115034,118.99,118.94,6.72706838]
[1766088262917,15.82115034,118.99,118.95,6.72706838]
[1766088262918,9.09408196,118.99,118.95,6.72706838]
[1766088263108,0.69,118.98,118.94,6.72706838]
[1766088263314,0.69,118.98,118.93,6.72706838]
[1766088263513,0.69,118.98,118.9,6.72706838]
[1766088263514,0.69,118.94,118.9,6.72706838]
[1766088263711,0.69,118.94,118.83,42.07526379]
[1766088263712,0.69,118.93,118.89,15.92706838]
[1766088263912,0.69,118.93,118.9,6.72706838]
[1766088264122,0.69,118.97,118.91,6.72706838]
[1766088264328,15.82200256,118.98,118.93,6.72706838]
[1766088264625,0.69,118.98,118.93,6.72706838]
[1766088264804,9.09481691,118.98,118.93,6.72706838]
[1766088265006,0.69,118.98,118.94,6.72706838]
[1766088265206,7.41706838,118.97,118.91,10.43767296]
[1766088265420,7.41706838,118.96,118.91,6.72706838]
[1766088265603,0.69,118.95,118.89,28.04867241]
[1766088265932,0.69,118.95,118.9,6.72706838]
[1766088265933,0.69,118.94,118.9,6.72706838]
[1766088266300,0.69,118.93,118.89,9.2]
[1766088266510,6.72706838,118.92,118.87,6.72706838]
[1766088266710,6.72706838,118.92,118.86,9.2]
[1766088266711,18.00994492,118.93,118.86,9.2]
[1766088266915,0.69,118.91,118.86,6.72706838]
[1766088267116,0.69,118.9,118.84,8.41443895]
[1766088267313,0.69,118.9,118.86,6.72706838]
[1766088267513,0.69,118.89,118.83,9.2]
[1766088267716,0.69,118.88,118.84,6.72706838]
[1766088268104,0.51,118.88,118.84,6.72706838]
[1766088268299,6.72706838,118.89,118.84,6.72706838]
[1766088268511,6.72706838,118.89,118.83,9.2]
[1766088268512,6.72706838,118.88,118.83,15.92706838]
[1766088268717,6.72706838,118.87,118.82,6.72706838]
[1766088268916,6.72706838,118.87,118.8,17.81711593]
[1766088268917,6.72706838,118.86,118.81,6.72706838]
[1766088269114,10.43767296,118.9,118.8,16.12706838]
[1766088269115,6.72706838,118.85,118.8,16.12706838]
[1766088269304,6.72706838,118.85,118.8,9.4]
[1766088269505,9.2,118.88,118.8,0.2]
[1766088269506,6.72706838,118.84,118.8,0.2]
[1766088269707,6.72706838,118.85,118.8,6.92706838]
[1766088270130,0.69,118.83,118.8,0.2]